Workbook

Sheet Satellite
A3: Mars | B3: Deimos | C3: Phobos | D3: 6/sol | E3: 12/sol
A4: 59354294 | B4: 109120 | C4: 27554 | D4: =A14/6 -> 14773.67 | E4: =A14/12 -> 7386.83 | F4: sec Sidereal orbit period
A5: 2.28E+08 | B5: 23463 | C5: 9376 | D5: =($A$9*(D4/(2*PI()))^2)^(1/3) -> 6186.56 | E5: =($A$9*(E4/(2*PI()))^2)^(1/3) -> 3897.29 | F5: km Semimajor axis
A6: 0.0934 | B6: 0.00033 | C6: 0.0151 | D6: 0 | E6: 0 | F6: eccentricity
A7: 24.077 | B7: 1.3513 | C7: 2.138 | D7: =SQRT($A$9/D5) -> 2.6311 | E7: =SQRT($A$9/E5) -> 3.3150 | F7: km/s orbital speed
A8: 6.417E+23 | B8: 1476000000000000 | C8: 10659000000000000 | D8: na | E8: na | F8: kg Estimated Mass
A9: 42828.37 | B9: =6.673E-020*B8 -> 9.85E-05 | C9: =6.673E-020*C8 -> 7.11E-04 | D9: na | E9: na | F9: km3/s2 Standard Grav constant
A10: 3396 | B10: 6.2 | C10: 11.3 | D10: na | E10: na | F10: km Mean radius
A11: =1000*A9/A10^2 -> 3.714 | B11: =1000*B9/B10^2 -> 0.003 | C11: =1000*C9/C10^2 -> 0.006 | D11: na | E11: na | F11: m/s2 surface gravity
A12: 3420 | B12: na | C12: na | D12: na | E12: na | F12: km Entry radius WAG
A13: 88775 | B13: =A13 -> 88775 | C13: =A13 -> 88775 | D13: na | E13: na | F13: sec day
A14: 88642 | B14: sync | C14: sync | D14: na | E14: na | F14: sec Sidereal rotation period
A15: 0.241 | B15: na | C15: na | D15: na | E15: na | F15: km/s surface rotation speed
A16: 1.85 | B16: 0.93 | C16: 1.093 | D16: na | E16: na | F16: deg inclination
E17: 299792.456 | F17: km/s speed of light
A19: The View
A20: elevation | B20: 0 | C20: =B20 -> 0 | D20: =B20 -> 0 | E20: =B20 -> 0 | F20: deg
A21: beamspread | B21: =DEGREES(ASIN(($A$10/B$5)*COS(RADIANS(B20)))) -> 8.32 | C21: =DEGREES(ASIN(($A$10/C$5)*COS(RADIANS(C20)))) -> 21.24 | D21: =DEGREES(ASIN(($A$10/D$5)*COS(RADIANS(D20)))) -> 33.29 | E21: =DEGREES(ASIN(($A$10/E$5)*COS(RADIANS(E20)))) -> 60.62 | F21: deg
A22: surface angle | B22: =90-(B21+B20) -> 81.68 | C22: =90-(C21+C20) -> 68.76 | D22: =90-(D21+D20) -> 56.71 | E22: =90-(E21+E20) -> 29.38 | F22: deg
A23: coverage | B23: =0.5*(1-COS(RADIANS(B22))) -> 0.4276 | C23: =0.5*(1-COS(RADIANS(C22))) -> 0.3189 | D23: =0.5*(1-COS(RADIANS(D22))) -> 0.2255 | E23: =0.5*(1-COS(RADIANS(E22))) -> 0.0643 | F23: fraction
A24: surface dist | B24: =$A$10*RADIANS(B22) -> 4841 | C24: =$A$10*RADIANS(C22) -> 4076 | D24: =$A$10*RADIANS(D22) -> 3361 | E24: =$A$10*RADIANS(E22) -> 1741 | F24: km
A25: sat/gnd dist | B25: =$A$10*SIN(RADIANS(B22))/SIN(RADIANS(B21)) -> 23216 | C25: =$A$10*SIN(RADIANS(C22))/SIN(RADIANS(C21)) -> 8739 | D25: =$A$10*SIN(RADIANS(D22))/SIN(RADIANS(D21)) -> 5171 | E25: =$A$10*SIN(RADIANS(E22))/SIN(RADIANS(E21)) -> 1912.08 | F25: km
A26: sat/gnd time | B26: =2*B25/$E$17 -> 0.155 | C26: =2*C25/$E$17 -> 0.058 | D26: =2*D25/$E$17 -> 0.034 | E26: =2*E25/$E$17 -> 0.013 | F26: sec
A27: 6s hops | B27: =INT(1+(180-B22)/(2*D22)) -> 1.000 | C27: =INT(1+(180-C22)/(2*D22)) -> 1.000 | F27: hopcount
A28: 6s time | B28: =B26+2*B27*D26 -> 0.224 | C28: =C26+2*C27*D26 -> 0.127 | D28: ratio | E28: =B28/C28 -> 1.76 | F28: sec round trip ping time
A29: 12s hops | B29: =INT(1+(180-B22)/(2*E22)) -> 2.000 | C29: =INT(1+(180-C22)/(2*E22)) -> 2.000 | F29: hopcount
A30: 12s time | B30: =B26+2*B29*E26 -> 0.206 | C30: =C$26+2*C29*E26 -> 0.109 | D30: ratio | E30: =B30/C30 -> 1.88 | F30: sec round trip ping time
A32: elevation | B32: 10 | C32: =B32 -> 10 | D32: =B32 -> 10 | E32: =B32 -> 10 | F32: deg
A33: beamspread | B33: =DEGREES(ASIN(($A$10/B$5)*COS(RADIANS(B32)))) -> 8.19 | C33: =DEGREES(ASIN(($A$10/C$5)*COS(RADIANS(C32)))) -> 20.90 | D33: =DEGREES(ASIN(($A$10/D$5)*COS(RADIANS(D32)))) -> 32.72 | E33: =DEGREES(ASIN(($A$10/E$5)*COS(RADIANS(E32)))) -> 59.11 | F33: deg
A34: surface angle | B34: =90-(B33+B32) -> 71.81 | C34: =90-(C33+C32) -> 59.10 | D34: =90-(D33+D32) -> 47.28 | E34: =90-(E33+E32) -> 20.89 | F34: deg
A35: coverage | B35: =0.5*(1-COS(RADIANS(B34))) -> 0.3439 | C35: =0.5*(1-COS(RADIANS(C34))) -> 0.2432 | D35: =0.5*(1-COS(RADIANS(D34))) -> 0.1608 | E35: =0.5*(1-COS(RADIANS(E34))) -> 0.0329 | F35: fraction
A36: surface dist | B36: =$A$10*RADIANS(B34) -> 4256 | C36: =$A$10*RADIANS(C34) -> 3503 | D36: =$A$10*RADIANS(D34) -> 2802 | E36: =$A$10*RADIANS(E34) -> 1238 | F36: km
A37: sat/gnd dist | B37: =$A$10*SIN(RADIANS(B34))/SIN(RADIANS(B33)) -> 22634 | C37: =$A$10*SIN(RADIANS(C34))/SIN(RADIANS(C33)) -> 8170 | D37: =$A$10*SIN(RADIANS(D34))/SIN(RADIANS(D33)) -> 4615 | E37: =$A$10*SIN(RADIANS(E34))/SIN(RADIANS(E33)) -> 1411.24 | F37: km
A38: sat/gnd time | B38: =2*B37/$E$17 -> 0.151 | C38: =2*C37/$E$17 -> 0.055 | D38: =2*D37/$E$17 -> 0.031 | E38: =2*E37/$E$17 -> 0.009 | F38: sec
A39: 6s hops | B39: =INT(1+(180-B34)/(2*D34)) -> 2.000 | C39: =INT(1+(180-C34)/(2*D34)) -> 2.000 | F39: hopcount
A40: 6s time | B40: =B38+2*B39*D38 -> 0.274 | C40: =C38+2*C39*D38 -> 0.178 | D40: ratio | E40: =B40/C40 -> 1.54 | F40: sec round trip ping time
A41: 12s hops | B41: =INT(1+(180-B34)/(2*E34)) -> 3.000 | C41: =INT(1+(180-C34)/(2*E34)) -> 3.000 | F41: hopcount
A42: 12s time | B42: =B38+2*B41*E38 -> 0.207 | C42: =C$26+2*C41*E38 -> 0.115 | D42: ratio | E42: =B42/C42 -> 1.81 | F42: sec round trip ping time
A44: elevation | B44: 20 | C44: =B44 -> 20 | D44: =B44 -> 20 | E44: =B44 -> 20 | F44: deg
A45: beamspread | B45: =DEGREES(ASIN(($A$10/B$5)*COS(RADIANS(B44)))) -> 7.82 | C45: =DEGREES(ASIN(($A$10/C$5)*COS(RADIANS(C44)))) -> 19.90 | D45: =DEGREES(ASIN(($A$10/D$5)*COS(RADIANS(D44)))) -> 31.05 | E45: =DEGREES(ASIN(($A$10/E$5)*COS(RADIANS(E44)))) -> 54.97 | F45: deg
A46: surface angle | B46: =90-(B45+B44) -> 62.18 | C46: =90-(C45+C44) -> 50.10 | D46: =90-(D45+D44) -> 38.95 | E46: =90-(E45+E44) -> 15.03 | F46: deg
A47: coverage | B47: =0.5*(1-COS(RADIANS(B46))) -> 0.2667 | C47: =0.5*(1-COS(RADIANS(C46))) -> 0.1793 | D47: =0.5*(1-COS(RADIANS(D46))) -> 0.1111 | E47: =0.5*(1-COS(RADIANS(E46))) -> 0.0171 | F47: fraction
A48: surface dist | B48: =$A$10*RADIANS(B46) -> 3686 | C48: =$A$10*RADIANS(C46) -> 2970 | D48: =$A$10*RADIANS(D46) -> 2308 | E48: =$A$10*RADIANS(E46) -> 891 | F48: km
A49: sat/gnd dist | B49: =$A$10*SIN(RADIANS(B46))/SIN(RADIANS(B45)) -> 22083 | C49: =$A$10*SIN(RADIANS(C46))/SIN(RADIANS(C45)) -> 7655 | D49: =$A$10*SIN(RADIANS(D46))/SIN(RADIANS(D45)) -> 4138 | E49: =$A$10*SIN(RADIANS(E46))/SIN(RADIANS(E45)) -> 1075.72 | F49: km
A50: sat/gnd time | B50: =2*B49/$E$17 -> 0.147 | C50: =2*C49/$E$17 -> 0.051 | D50: =2*D49/$E$17 -> 0.028 | E50: =2*E49/$E$17 -> 0.007 | F50: sec
A51: 6s hops | B51: =INT(1+(180-B46)/(2*D46)) -> 2.000 | C51: =INT(1+(180-C46)/(2*D46)) -> 2.000 | F51: hopcount
A52: 6s time | B52: =B50+2*B51*D50 -> 0.258 | C52: =C50+2*C51*D50 -> 0.162 | D52: ratio | E52: =B52/C52 -> 1.60 | F52: sec round trip ping time
A53: 12s hops | B53: =INT(1+(180-B46)/(2*E46)) -> 4.000 | C53: =INT(1+(180-C46)/(2*E46)) -> 5.000 | F53: hopcount
A54: 12s time | B54: =B50+2*B53*E50 -> 0.205 | C54: =C$26+2*C53*E50 -> 0.130 | D54: ratio | E54: =B54/C54 -> 1.57 | F54: sec round trip ping time

Sheet Entry Elevator
A1: Deimos / Phobos loop elevators
A3: Mars | B3: Deimos | C3: Phobos
A4: 59354294 | B4: 109120 | C4: 27554 | D4: sec Sidereal orbit period
A5: 2.28E+08 | B5: 23463 | C5: 9376 | D5: km Semimajor axis
A6: 0.0934 | B6: 0.00033 | C6: 0.0151 | D6: eccentricity
A7: 24.077 | B7: 1.3513 | C7: 2.138 | D7: km/s orbital speed
A8: 6.417E+23 | B8: 1.476E+15 | C8: 1.066E+16 | D8: kg Estimated Mass
A9: 42828.37 | B9: na | C9: na | D9: km3/s2 Standard Grav constant
A10: 3396 | B10: 6.2 | C10: 11.3 | D10: km Mean radius
A11: 3420 | B11: na | C11: na | D11: km Entry radius WAG
A12: 88642 | B12: sync | C12: sync | D12: sec Sidereal rotation period
A13: 0.241 | B13: na | C13: na | D13: km/s surface rotation speed
A14: 1.85 | B14: 0.93 | C14: 1.093 | D14: deg inclination
A15: na | B15: =B5-B17 -> 7017.54 | C15: =C5-C17 -> 1455.96 | D15: km drop elevator length
A16: na | B16: =$A$9*((1/B17)-(1/B5))+0.5*(B5^2-B17^2)*B21^2 -> 1.24 | C16: =$A$9*((1/C17)-(1/C5))+0.5*(C5^2-C17^2)*C21^2 -> 1.49 | D16: km2/s2 drop elevator strength
A17: na | B17: =B23 -> 16445.46 | C17: =C23 -> 7920.04 | D17: km drop radius to reentry
A19: Compute drop radius to reentry
A21: =2*PI()/A4 -> 1.059E-07 | B21: =2*PI()/B4 -> 5.758E-05 | C21: =2*PI()/C4 -> 2.280E-04 | D21: rad/s omega
B22: =2*$A$9/B21^2 -> 2.583512217e+13 | C22: =2*$A$9/C21^2 -> 1.647293987e+12 | D22: 2mu/omega2
B23: 16445.45923 | C23: 7920.042503 | D23: km test drop radius to reentry
B24: =SQRT(SQRT(B$22/((1/B23)+(1/$A$11)))) -> 16445.45923 | C24: =SQRT(SQRT(C$22/((1/C23)+(1/$A$11)))) -> 7920.042503 | D24: iterate
B25: =SQRT(SQRT(B$22/((1/B24)+(1/$A$11)))) -> 16445.45923 | C25: =SQRT(SQRT(C$22/((1/C24)+(1/$A$11)))) -> 7920.042503 | D25: iterate
B26: =SQRT(SQRT(B$22/((1/B25)+(1/$A$11)))) -> 16445.45923 | C26: =SQRT(SQRT(C$22/((1/C25)+(1/$A$11)))) -> 7920.042503 | D26: iterate
B27: =SQRT(SQRT(B$22/((1/B26)+(1/$A$11)))) -> 16445.45923 | C27: =SQRT(SQRT(C$22/((1/C26)+(1/$A$11)))) -> 7920.042503 | D27: iterate
B28: =SQRT(SQRT(B$22/((1/B27)+(1/$A$11)))) -> 16445.45923 | C28: =SQRT(SQRT(C$22/((1/C27)+(1/$A$11)))) -> 7920.042503 | D28: iterate
B29: =SQRT(SQRT(B$22/((1/B28)+(1/$A$11)))) -> 16445.45923 | C29: =SQRT(SQRT(C$22/((1/C28)+(1/$A$11)))) -> 7920.042503 | D29: iterate
